Cogmind - Beta 12 @@@ ROGUE MODE // 2023.06.29 @ 22:54:10 Player: ZOT Result: Destroyed by G-47 Trooper with Particle Gun Performance ------------- Evolutions (2) 1000 Regions Visited (4) 800 Robots Destroyed (8) 40 Value Destroyed (62) 62 Prototype IDs (0) 0 Alien Tech Used (0) 0 Bonus (0) 0 TOTAL SCORE: 1902 Bonus ------- None Cogmind --------- Core Integrity 0/550 Matter 199/300 Energy 100/100 System Corruption 2% Temperature Cool (18) Movement Core (50) Location -8/Materials Parts ------- > --- POWER (1) -------- (None) > --- PROPULSION (2) --- (None) > --- UTILITY (6) ------ Signal Interpreter Terrain Scan Processor Hacking Suite > --- WEAPON (2) ------- (None) > --- INVENTORY (5) ---- Seismic Detector ECM Suite Reaction Control System Peak State ------------ > --- POWER ------------ Light Deuterium Engine > --- PROPULSION ------- Wheel Wheel > --- UTILITY ---------- Structural Scanner Sensor Array Signal Interpreter Terrain Scanner Improved Terrain Scanner Terrain Scan Processor > --- WEAPON ----------- Light Assault Rifle Bore Cannon > --- INVENTORY -------- Improved Ion Engine Advanced Weight Redist. System Seismic Detector ECM Suite Hacking Suite [Rating: 21] Favorites ----------- Power Improved Ion Engine Engine Improved Ion Engine Power Core Nuclear Core Propulsion Wheel Wheel Wheel Utility Improved Terrain Scanner Device Improved Terrain Scanner Processor Signal Interpreter Hackware Hacking Suite Weapon Light Assault Rifle Energy Gun EM Pulse Gun Ballistic Gun Light Assault Rifle Ballistic Cannon Bore Cannon Special Weapon Mining Laser Build | -11 -10 -9 -9 -8 ------- Run | Jun Mat Mat Min Mat Slots Evolved 4 | . . 2 . 2 Power . | . . . . . Propulsion . | . . . . . Utility 4 | . . 2 . 2 Weapon . | . . . . . Parts Attached 27 | 7 2 4 6 8 Power 6 | 1 1 . 1 3 Engine 5 | 1 1 . 1 2 Core 1 | . . . . 1 Reactor . | . . . . . Propulsion 7 | 2 . 2 3 . Treads . | . . . . . Leg . | . . . . . Wheel 7 | 2 . 2 3 . Hover . | . . . . . Flight . | . . . . . Utility 9 | 2 . 2 1 4 Device 6 | 2 . 1 1 2 Storage . | . . . . . Processor 2 | . . 1 . 1 Hackware 1 | . . . . 1 Protection . | . . . . . Artifact . | . . . . . Weapon 5 | 2 1 . 1 1 Energy Gun 1 | 1 . . . . Energy Cannon . | . . . . . Ballistic Gun 2 | . 1 . . 1 Ballistic Cannon 1 | . . . 1 . Launcher . | . . . . . Special Weapon 1 | 1 . . . . Impact Weapon . | . . . . . Slashing Weapon . | . . . . . Piercing Weapon . | . . . . . Special Melee Weapon . | . . . . . Unidentified Prototypes . | . . . . . Parts Lost 16 | . 2 3 . 11 Power 3 | . . 1 . 2 Propulsion 3 | . . 1 . 2 Utility 5 | . . 1 . 4 Weapon 5 | . 2 . . 3 Highest Loss Streak 7 | . 2 3 . 7 To Critical Strikes . | . . . . . Average Slot Usage (%) 84 | . 96 83 83 77 Engine 10 | . 14 9 11 7 Wheel 17 | . 28 18 17 10 Device 28 | . 28 33 28 27 Processor 10 | . . 11 11 18 Energy Gun 2 | . 9 . . . Ballistic Gun 8 | . 4 11 11 5 Ballistic Cannon 2 | . . . 3 6 Special Weapon 2 | . 11 . . . Naked Turns . | . . . . . Heaviest Build 21 | 10 12 11 20 21 Greatest Support 26 | 20 20 20 26 20 Greatest Overweight (x) 3 | . . . 1 3 Average Overweight (x) . | . . . . . Largest Inventory Capacity 5 | 5 5 5 5 5 Average Capacity 5 | 5 5 5 5 5 Most Carried 5 | 2 5 4 5 5 Average Carried 3 | . 4 3 3 3 Final Capacity 5 | 5 5 5 5 5 Final Carried 5 | 1 5 3 4 3 Class Distribution -------------------- 50% | Scavenger-Mutant 30% | Mutant 19% | Scavenger-Skirmisher Dominant Class ---------------- Mutant | -10/Materials Scavenger-Mutant | -9/Materials Scavenger-Mutant | -9/Mines Scavenger-Mutant | -8/Materials Resources | -11 -10 -9 -9 -8 ----------- Run | Jun Mat Mat Min Mat Matter Collected 366 | 226 40 . 96 4 Remotely . | . . . . . Salvage Created 221 | 49 59 . 113 . Parts 28 | 5 13 . 10 . Haulers Intercepted . | . . . . . Recyclers Shooed 2 | . . . 1 1 Parts Field Recycled . | . . . . . Retrieved Matter . | . . . . . Parts Self-Destructed . | . . . . . Prevented . | . . . . . Kills | -11 -10 -9 -9 -8 ------- Run | Jun Mat Mat Min Mat Combat Hostiles Destroyed 2 | . 2 . . . Guns 2 | . 2 . . . Classes Destroyed 6 | 1 2 . 3 . Worker 1 | . . . 1 . Builder 1 | . . . 1 . Tunneler 2 | 2 . . . . Recycler 1 | . . . 1 . Watcher 1 | . 1 . . . Swarmer 2 | . 2 . . . Best Kill Streak 2 | 2 2 . 1 . Combat Bots Only 1 | . 1 . . . Max Kills in Single Turn 1 | 1 1 . 1 . Gunslinging . | . . . . . Exploded . | . . . . . Melee . | . . . . . Uniques/NPCs Destroyed . | . . . . . Combat | -11 -10 -9 -9 -8 -------- Run | Jun Mat Mat Min Mat Damage Taken 1749 | . 243 284 3 1219 Core 712 | . 66 88 . 558 Absorbed by Shields . | . . . . . Regen/Repaired (Parts) 41 | . . 41 . . Core Remaining (%) 83 | 100 73 . 78 . Volleys Fired 58 | 3 24 . 17 14 Largest 2 | 1 1 . 1 2 Hottest 77 | 40 40 . 20 77 Shots Fired 61 | 3 24 . 17 17 Gun 52 | 3 24 . 17 8 Cannon 9 | . . . . 9 Launcher . | . . . . . Special . | . . . . . Kinetic 41 | . 7 . 17 17 Thermal . | . . . . . Explosive . | . . . . . Electromagnetic 20 | 3 17 . . . Robot Hit Streak 6 | 2 3 . 6 2 Robot Miss Streak 8 | 1 5 . 2 8 Penetration Max . | . . . . . Secondary Targets . | . . . . . Shots Hit Robots 30 | 2 9 . 13 6 Core Hits 16 | 2 4 . 6 4 Critical Kills . | . . . . . Critical Parts Destroyed . | . . . . . Critical Strikes . | . . . . . Melee Attacks . | . . . . . Impact . | . . . . . Slashing . | . . . . . Piercing . | . . . . . Sneak Attacks . | . . . . . Combat Hostiles . | . . . . . Follow-up Attacks . | . . . . . Damage Inflicted 419 | 28 112 . 111 168 Guns 337 | 28 112 . 104 93 Cannons 47 | . . . . 47 Explosions . | . . . . . Melee . | . . . . . Ramming 35 | . . . 7 28 Kinetic 287 | . 43 . 104 140 Thermal . | . . . . . Explosive . | . . . . . Electromagnetic 97 | 28 69 . . . Impact . | . . . . . Slashing . | . . . . . Piercing . | . . . . . Highest Corruption 2 | . . . . 2 Average Corruption 2 | . . . . 2 Corruption Purged . | . . . . . Corruption Blocked . | . . . . . Effects 2 | . . . . 2 Matter Fused 1 | . . . . 1 Parts Rejected 1 | . . . . 1 Overload Shots . | . . . . . Overflow Damage . | . . . . . Projectiles . | . . . . . Explosions . | . . . . . Melee . | . . . . . Knockbacks 2 | . . . . 2 Impact . | . . . . . Kinetic 2 | . . . . 2 Secondary . | . . . . . Self-Inflicted Damage 16 | . . . 3 13 Shots . | . . . . . Rammed 11 | . . . 1 10 Targets Rammed 11 | . . . 1 10 Kicked . | . . . . . Crushed . | . . . . . Highest Temperature 215 | . 27 . . 215 Average Temperature 49 | . 7 . . 96 Received Heat Transfer 798 | . 6 45 . 747 Siege Activations . | . . . . . Robots Corrupted . | . . . . . Combat Hostiles . | . . . . . Parts Fried . | . . . . . Impact Corruptions . | . . . . . Robots Melted . | . . . . . Combat Hostiles . | . . . . . Parts Melted . | . . . . . Heat Transferred . | . . . . . Parts Sabotaged . | . . . . . Parts Stolen . | . . . . . Parts Stripped . | . . . . . Power Chain Reactions . | . . . . . Missiles Intercepted . | . . . . . Alert | -11 -10 -9 -9 -8 ------- Run | Jun Mat Mat Min Mat Peak Influence 135 | 10 135 108 45 99 Initial 56 | . 6 56 30 . Average 44 | 2 72 71 31 32 Maximum Alert Level . | . . . . . Low Security (%) 100 | 100 100 100 100 100 Level 1 . | . . . . . Level 2 . | . . . . . Level 3 . | . . . . . Level 4 . | . . . . . Level 5 . | . . . . . High Security . | . . . . . Max Security . | . . . . . Squads Dispatched 4 | . . 1 . 3 Investigation 1 | . . . . 1 Extermination . | . . . . . Reinforcement 3 | . . 1 . 2 Assault . | . . . . . Garrison . | . . . . . Intercept . | . . . . . Searches Triggered . | . . . . . Construction Impeded 1 | . . . . 1 Haulers Reinforced . | . . . . . Active Scanning Responses . | . . . . . Cargo Convoy Interrupts . | . . . . . Stealth | -11 -10 -9 -9 -8 --------- Run | Jun Mat Mat Min Mat Distress Signals 4 | . . 2 . 2 Communications Jammed . | . . . . . Distress Signals . | . . . . . Times Spotted 45 | . 7 14 . 24 Peak Tracking Total 16 | . 3 12 . 16 Tactical Retreats 6 | . 1 . . 5 Traps | -11 -10 -9 -9 -8 ------- Run | Jun Mat Mat Min Mat Traps Triggered 1 | . . . . 1 Indirectly . | . . . . . Trap Hack Attempts . | . . . . . Triggered . | . . . . . Disarmed . | . . . . . Reprogrammed . | . . . . . Reused . | . . . . . Traps Extracted . | . . . . . Installed . | . . . . . Triggered . | . . . . . Machines | -11 -10 -9 -9 -8 ---------- Run | Jun Mat Mat Min Mat Machines Disabled . | . . . . . Max in Single Turn . | . . . . . Machines Repaired . | . . . . . Machines Sabotaged . | . . . . . Overloaded Fab Kills . | . . . . . Hacking | -11 -10 -9 -9 -8 --------- Run | Jun Mat Mat Min Mat Machines Accessed 9 | . 3 5 . 1 Terminals 6 | . 3 2 . 1 Fabricators . | . . . . . Repair Stations 1 | . . 1 . . Recycling Units 1 | . . 1 . . Scanalyzers 1 | . . 1 . . Garrison Access . | . . . . . Total Hacks 25 | . 6 17 . 2 Successful 19 | . 4 13 . 2 Failed 6 | . 2 4 . . Catastrophic . | . . . . . Database Lockouts . | . . . . . Manual . | . . . . . Terminals 14 | . 6 6 . 2 Fabricators . | . . . . . Repair Stations 5 | . . 5 . . Recycling Units 1 | . . 1 . . Scanalyzers 5 | . . 5 . . Garrison Access . | . . . . . Terminal Hacks 10 | . 4 4 . 2 Record 2 | . 1 . . 1 Branch Access Points 1 | . . 1 . . Alert Level 1 | . 1 . . . Locate Traps 2 | . . 2 . . Recall Reinforcements 1 | . 1 . . . Registered Prototypes 1 | . 1 . . . Zone Layout 2 | . . 1 . 1 Fabricator Hacks . | . . . . . Repair Station Hacks 4 | . . 4 . . Scan Component 2 | . . 2 . . Repair 2 | . . 2 . . Recycling Unit Hacks 1 | . . 1 . . Report Inventory 1 | . . 1 . . Scanalyzer 4 | . . 4 . . Insert Component 2 | . . 2 . . Analyze 2 | . . 2 . . Garrison Access Hacks . | . . . . . Unauthorized Hacks . | . . . . . Terminals . | . . . . . Fabricators . | . . . . . Repair Stations . | . . . . . Recycling Units . | . . . . . Scanalyzers . | . . . . . Garrison Access . | . . . . . Data Cores Recovered . | . . . . . Used . | . . . . . Hacking Detections 6 | . 2 3 . 1 Full Trace Events 1 | . . 1 . . Feedback Events . | . . . . . Feedback Blocked . | . . . . . Robot Schematics Acquired . | . . . . . Robots Built . | . . . . . Authchips . | . . . . . Time . | . . . . . Total Robot Build Rating . | . . . . . Part Schematics Acquired 2 | . . 2 . . Parts Built . | . . . . . Authchips . | . . . . . Time . | . . . . . Total Part Build Rating . | . . . . . Parts Repaired 2 | . . 2 . . Time 52 | . . 52 . . Parts Recycled . | . . . . . Recycled Matter . | . . . . . Retrieved Matter . | . . . . . Retrieved Components . | . . . . . Parts Scanalyzed 2 | . . 2 . . Part Schematics Acquired 2 | . . 2 . . Parts Damaged . | . . . . . Bothacking | -11 -10 -9 -9 -8 ------------ Run | Jun Mat Mat Min Mat Used RIF Installer . | . . . . . Robots Hacked . | . . . . . Non-combat . | . . . . . Combat . | . . . . . Robot Hacks Applied . | . . . . . Relay Couplers Released . | . . . . . Fabnet Peak Effective % . | . . . . . Robots Rewired . | . . . . . Allies Hacked . | . . . . . Hacks Repelled . | . . . . . Allies | -11 -10 -9 -9 -8 -------- Run | Jun Mat Mat Min Mat Total Allies . | . . . . . Largest Group . | . . . . . Highest-Rated Group . | . . . . . Highest-Rated Ally . | . . . . . Total Orders . | . . . . . Ally Attacks . | . . . . . Total Damage . | . . . . . Kills . | . . . . . Allies Corrupted . | . . . . . Allies Melted . | . . . . . Intel | -11 -10 -9 -9 -8 ------- Run | Jun Mat Mat Min Mat Robot Analysis Total . | . . . . . Derelict Logs Recovered 1 | . . . 1 . Drone Launches . | . . . . . Drone Recoveries . | . . . . . Exploration | -11 -10 -9 -9 -8 ------------- Run | Jun Mat Mat Min Mat Turns Passed 1248 | 60 239 206 468 275 Spaces Moved 1170 | 50 211 185 461 263 Core 97 | 2 . . . 95 Treads . | . . . . . Legs . | . . . . . Wheels 1073 | 48 211 185 461 168 Hover . | . . . . . Flight . | . . . . . Fastest Speed 50 | 50 80 80 80 50 Average Speed 80 | 78 80 80 81 81 Slowest Speed 200 | 80 80 80 95 200 Overloaded Moves . | . . . . . Propulsion Burnouts . | . . . . . Robots Hopped . | . . . . . Cave-ins Triggered . | . . . . . Exploration Rate (%) 32 | 3 40 25 66 29 Regions Visited 4 Branch Regions 1 Pre-discovered Areas 1 | . . . 1 . Known Exits Taken 2 | . . 1 1 . Unknown Exits Taken 2 | 1 1 . . . Scrap Searched 3 | . . . 3 . Spaces Dug . | . . . . . Terrain Destroyed 6 | . . . . 6 Melee . | . . . . . Projectile 6 | . . . . 6 AOE . | . . . . . Terrain Rammed . | . . . . . Walls Destroyed . | . . . . . Machines Disabled . | . . . . . Actions | -11 -10 -9 -9 -8 --------- Run | Jun Mat Mat Min Mat Total 1414 | 67 259 242 538 308 Wait 113 | . 9 52 47 5 Move 1166 | 49 210 184 460 263 Hop . | . . . . . Pick Up 31 | 8 9 2 6 6 Fast Attach 1 | . 1 . . . Attach 22 | 7 . 4 5 6 Detach . | . . . . . Swap 4 | . 1 . 1 2 Drop 8 | . 5 . 1 2 Fire 58 | 3 24 . 17 14 Melee . | . . . . . Ram 11 | . . . 1 10 Kick . | . . . . . Crush . | . . . . . Escape Stasis . | . . . . . Rewire . | . . . . . Trap . | . . . . . Miscellaneous . | . . . . . Route ------- -11/Junkyard -10/Materials -9/Materials (discovered 2 exits: *Min x2) -9/Mines -8/Materials (discovered 1 exit: [*Sto]) History --------- Turn | Location | Event 10 | -11/Junkyard | Discovered new exit (range 15) 61 | -11/Junkyard | Entered Materials 267 | -10/Materials | Discovered new exit (range 12) 300 | -10/Materials | Entered another Materials area 300 | -9/Materials | Evolved 2 slots: Utility x2 385 | -9/Materials | Repaired Wheel 413 | -9/Materials | Repaired Wheel 426 | -9/Materials | Identified exit to Mines 506 | -9/Materials | Entered Mines 536 | -9/Mines | Lost 3 parts (1p1n1u) 585 | -9/Mines | Discovered new exit (range 3) 588 | -9/Mines | Identified exit to Materials 603 | -9/Mines | Build established: Scavenger-Mutant 812 | -9/Mines | A weapon hastily lodged in a ceiling crevice suddenly fell to the ground 821 | -9/Mines | Learned location of Recycling (-8) 974 | -9/Mines | Entered Materials 974 | -8/Materials | Evolved 2 slots: Utility x2 1119 | -8/Materials | Lost 3 parts (1n1u1w) 1206 | -8/Materials | Core integrity fell below 50% 1216 | -8/Materials | Discovered new exit (range 14) 1246 | -8/Materials | Core integrity fell below 20% 1247 | -8/Materials | Lost 7 parts (2p1n3u1w) 1249 | -8/Materials | Destroyed by G-47 Trooper with Particle Gun Last Messages --------------- 01176_ K-01 Serf cleans the Fusion Modulator. 01182_ Acquired Hpw. Shotgun. 01184_ Slammed into K-01 Serf. 01184_ Imp. Ion Engine broken. 01184_ Destabilizing: Short circuit. 01186_ Slammed into K-01 Serf. 01186_ Broken Terrain Scanner destroyed. 01186_ System corrupted by crushing effect (+2). 01192_ W-25 Informer sends out distress signal. 01206_ System corrupted: Matter fused (-7). 01209_ Structural Scanner destroyed. 01215_ Acquired Reaction Control System. 01216_ EXIT=FOUND 01216_ Broken Imp. Ion Engine destroyed. 01231_ T-07 Excavator is excavating. 01236_ W-25 Informer sends out distress signal. 01236_ T-07 Excavator is excavating. 01244_ System corrupted: Adv. Weight Redist. System rejected. 01247_ Hpw. Shotgun destroyed. 01248_ Slammed into G-47 Trooper. Map ----- +----------------------------------------------------+ | | | | | | | | | | | | | | | | | | | | | | | | | | | | | | | | | | | | | | | ?????????????????????????????????????????????????? | | ?????????????????????????????????????????????????? | | ?????????????????????????????????????????????????? | | ???????????????#######???????????????###?????????? | | ?????########### ###############? #?????????? | | ????? g Y ## #??????????? | | ???? <= g@ ! #??????????? | | ????? g #??????????? | | ?????????###+### ###########g #??????????? | | ???????????????## ##???????### #??????????? | | ????????????????# #????????# # #??????????? | | ????????????????# #????????# ##/###?????? | | ????????????????# #????????# # | | ????????????????# ############ ###########???? | | ???????????????## #########??# #?????????????? | | ???????????????## ## ##??##/##?????????????? | | ???????????????## ## ### ?????????????? | | ???????????????## ## ### """ ???????????? | | ???????????????## ## # / """ #??????????? | | ??????????????? + ####+### # """ #??????????? | | ??????????????? # # #??????????? | | ??????????????? # # "" #??????????? | | ??????????????? # ]!! # T" #??????????? | | ??????????????? # ]!! # "? #??????????? | | ??????????????? # !!! + ? ??? ??????????? | | ???????????????## ##??????????????????? | | ??????????????? + ##??????????????????? | | ??????????????? # ######??????????????? | | ??????????????? # ######??????????????? | | ???????????????## #### ##??????????????? | | ?????????????#####+##### ##??????????????? | +----------------------------------------------------+ Best States ------------- Heat Dissipation 31 Energy Generation 14 Energy Capacity 265 Matter Stores 300 Matter Capacity 300 Sight Range 16 Robot Scan Range 14 Terrain Scan Range 16 Terrain Scan Density 85 Additional Mass Support 9 Evasion (%) 50 Offensive Hacking 10 Item Schematics ----------------- Imp. Ion Engine | -9/Materials | Scanalyzed ECM Suite | -9/Materials | Scanalyzed Robot Schematics ------------------ None Fabricated ------------ Nothing Alien Tech Used ----------------- None Achievements -------------- None Challenges ------------ None Game ------ Seed UtilityShrapnelImmobilizer Manual? 0 Play Time 00:25:36 Cumulative 33.6 hours Start 2023.06.29 @ 22:26:35 End 2023.06.29 @ 22:54:10 Sessions 1 Manual Loads 0 Difficulty Rogue Special Mode None Game No. 40 Rogue 40 Adventurer 0 Explorer 0 Win Type - Total 0 Types 0/0/0/0/0/0/0/0/0 Lore% 8 Gallery% 28 Achievement% 20 Wizard Run 0 Options --------- ASCII 0 Keyboard 0 Movement Mouse Keybinds 0 Fullscreen 1 Font 24/Smallcaps Map View 76x50 Tactical HUD 1 Map Filters NONE Filters NONE Steam 1 RUN: 8bb759ac-533e-429e-81f7-d4495e5661e5